[Event "ChessKid Cup Div-III 2023"]
[Site "Online"]
[Date "2023.05.23"]
[Round "4.2"]
[White "Bernadskiy, Vitaliy"]
[Black "Pichot, Alan"]
[Result "1/2-1/2"]
[ECO "C78"]
[WhiteElo "2592"]
[BlackElo "2638"]
[Annotator "TA"]
[PlyCount "158"]
[EventDate "2023.05.21"]
[EventType "k.o."]
[EventCountry "NET"]
[SourceTitle "playchess.com"]
[Source "ChessBase"]
[SourceQuality "1"]
[TimeControl "900+3"]

{[%evp 17,158,38,37,0,0,0,0,0,0,0,38,44,31,49,92,74,81,61,79,72,101,133,131,129,113,112,113,43,40,-15,293,294,295,295,305,304,293,280,464,449,464,459,433,269,289,283,275,277,274,256,256,234,514,305,316,0,504,335,322,234,271,254,243,226,286,254,293,292,343,344,358,68,63,68,68,68,67,66,68,71,68,71,68,77,76,32,34,36,36,36,43,0,0,0,0,0,0,0,0,0,0,0,0,0,43,43,128,121,2645,1904,2518,2125,1890,1373,1602,0,0,0,0,0,223,224,224,8,21,27,31,0,0,0,0,0,0,-8,-8,-8,-8,-8,-8,-8,-8,-8,0]} 1. e4 {[%emt 0:00:06]} e5 {[%emt 0:00:13]} 2. Nf3 {[%emt 0:00:02]} Nc6 {[%emt 0:00:02]} 3. Bb5 {[%emt 0:00:02]} a6 {[%emt 0:00:03]} 4. Ba4 {[%emt 0:00:01]} Nf6 {[%emt 0:00:44]} 5. O-O {[%emt 0:00:02]} b5 {[%emt 0:00:06]} 6. Bb3 {[%emt 0:00:01]} Bc5 {[%emt 0:00:01]} 7. a4 {[%emt 0:00:33]} Rb8 {[%emt 0:00:03]} 8. c3 {[%emt 0:00:32]} d6 {[%emt 0:00:03]} 9. d4 {[%emt 0:00:01]} Bb6 {[%emt 0:00:01]} 10. h3 {[%emt 0:00:03] Dodges Bg4. C78: Ruy Lopez: Archangelsk and Möller Defences.} O-O {[%emt 0:00:47]} 11. Re1 {[%emt 0:01:56]} h6 {[%emt 0:00:18]} 12. axb5 {[%emt 0:01:02]} axb5 {[%emt 0:00:03]} 13. Na3 {[%emt 0:00:00] 13.Be3 injects fresh life into this line.} b4 {[%emt 0:02:18]} 14. Nc4 {[%emt 0:00:23][%cal Rd4e5]} bxc3 {[%emt 0:00:07]} 15. bxc3 {[%emt 0:00:47]} exd4 {[%emt 0:00:02]} 16. Nxb6 {[%emt 0:00:30]} (16. Nxd4 Nxd4 17. cxd4 Bxd4 18. Qxd4 Rxb3 $11) 16... Rxb6 {[%emt 0:00:01]} 17. cxd4 {[%emt 0:00:01]} Re8 {[%emt 0:00:01] [#]} 18. Be3 $146 {[%emt 0:00:38]} ({Predecessor:} 18. Bc2 Nb4 19. d5 Nxc2 20. Qxc2 Rb4 21. Ra4 Rxa4 22. Qxa4 Qd7 23. Qc4 Bb7 24. Bb2 {1-0 Uskov,A (2128)-Prraneeth,V (2400) Novi Sad TS Mix 240th 2022 (1)}) 18... d5 {[%emt 0:00:58] [#]} 19. Ne5 $1 {[%emt 0:02:46][%mdl 512]} Nb4 {[%emt 0:01:56]} (19... Bb7 20. f3) 20. Bd2 {[%emt 0:00:08][%cal Be3d2,Bd2e1,Be1a5,Ba5c7,Bc7e5][%mdl 32]} Bb7 {[%emt 0:00:36]} 21. Ra4 {[%emt 0:00:47]} Nc6 {[%emt 0:01:07] [#]} 22. Nxf7 {[%emt 0:01:11][%mdl 512]} Kxf7 $14 {[%emt 0:00:38]} 23. e5 {[%emt 0:00:02] [#]} (23. exd5 $1 $14 Rxe1+ 24. Bxe1) 23... Nb8 $2 {[%emt 0:01:59][%mdl 8192]} 24. exf6 $18 {[%emt 0:01:05]} Rxe1+ {[%emt 0:00:03]} 25. Bxe1 {[%emt 0:00:01]} Qxf6 {[%emt 0:00:00]} 26. Ba5 {[%emt 0:00:10][%mdl 64] Skewer} Ra6 {[%emt 0:01:36]} 27. Bxc7 {[%emt 0:00:38]} Rxa4 {[%emt 0:00:05]} (27... Nd7 28. Qh5+ Kf8 29. Bxd5 {[%mdl 64] Overworked Piece} Bxd5 30. Rxa6 Qxa6) 28. Bxa4 {[%emt 0:00:19]} Nc6 {[%emt 0:00:01]} 29. Qh5+ {[%emt 0:00:22]} (29. Qe2 Qxd4 30. Bc2 Qc3 $18) 29... Ke7 {[%emt 0:00:01]} 30. Be5 {[%emt 0:01:26] A strong pair of Bishops.} ({Less strong is} 30. Qxd5 Qxd4 31. Qa2 (31. Bxc6 Qxd5 32. Bxd5 Bxd5 $14) 31... Qe4 $18) 30... Qf7 {[%emt 0:00:30]} 31. Qe2 {[%emt 0:00:23]} ({Resist} 31. Bd6+ $6 Ke6 32. Qxf7+ Kxf7 $16) 31... Kf8 {[%emt 0:00:21]} 32. Qb5 {[%emt 0:00:09]} Nxe5 {[%emt 0:00:31]} 33. dxe5 {[%emt 0:00:02][%mdl 4096] Endgame KQB-KQB} Qe7 {[%emt 0:00:01][%cal Oe7e5]} 34. Bb3 {[%emt 0:00:21]} Qf7 $2 {[%emt 0:00:31]} (34... Qc7 {was worth a try.} 35. Qb4+ (35. Bxd5 Qc1+ 36. Kh2 Qf4+ 37. Kh1 Qc1+ 38. Kh2 Qf4+ 39. Kh1 Qc1+ 40. Kh2 $11) 35... Kf7) 35. Qc5+ {[%emt 0:00:04]} Qe7 {[%emt 0:00:26]} 36. Qb5 {[%emt 0:00:01]} (36. Qb6 $142) 36... Qf7 $1 {[%emt 0:00:03]} 37. Qb4+ {[%emt 0:00:01]} Qe7 {[%emt 0:00:04]} 38. Qd4 {[%emt 0:00:01]} Qe6 {[%emt 0:00:09]} 39. f4 {[%emt 0:00:01]} Kg8 {[%emt 0:00:06]} 40. g4 {[%emt 0:00:05]} Qc6 {[%emt 0:00:02] [#]} 41. Kf2 $1 {[%emt 0:00:04]} Qb5 {[%emt 0:00:02]} 42. Bc2 {[%emt 0:00:01]} Ba6 {[%emt 0:00:10]} 43. Kg3 {[%emt 0:00:01] Active counter play!} Qa5 {[%emt 0:00:05]} 44. Bb3 $2 {[%emt 0:00:11]} ({White should play} 44. Kh4 $18) 44... Qe1+ $14 {[%emt 0:00:02]} 45. Qf2 {[%emt 0:00:05]} Qc3+ {[%emt 0:00:02]} 46. Qf3 {[%emt 0:00:01]} Qe1+ {[%emt 0:00:01]} 47. Kg2 {[%emt 0:00:05]} Qd2+ {[%emt 0:00:04]} 48. Qf2 {[%emt 0:00:03]} Qd3 {[%emt 0:00:01]} 49. Bc2 {[%emt 0:00:01]} Qc3 {[%emt 0:00:03]} 50. Bf5 {[%emt 0:00:05]} d4 {[%emt 0:00:02]} 51. Qa2+ {[%emt 0:00:02]} (51. Qf3 $5 {[%cal Rf3d5]} Qb2+ 52. Kg3 $16) 51... Bc4 {[%emt 0:00:03]} 52. Qa8+ {[%emt 0:00:02]} Kf7 {[%emt 0:00:01]} 53. Qb7+ {[%emt 0:00:01]} Kf8 {[%emt 0:00:09]} 54. Qc8+ {[%emt 0:00:02]} (54. Qf3 $5 {[%cal Rf3c3]} Qa5 55. Qf2 $16) 54... Ke7 {[%emt 0:00:01]} 55. Qc7+ {[%emt 0:00:02]} Kf8 {[%emt 0:00:01]} 56. Qd8+ {[%emt 0:00:03]} Kf7 {[%emt 0:00:01]} 57. Qc7+ {[%emt 0:00:09]} Kf8 {[%emt 0:00:04]} 58. Qc5+ {[%emt 0:00:01]} Kf7 $1 {[%emt 0:00:06][%cal Oc4f1] ...Bf1+! is the strong threat.} 59. Qa7+ {[%emt 0:00:06]} Kf8 {[%emt 0:00:02] ( -> ...Qd2+)} 60. Qa8+ {[%emt 0:00:03]} Kf7 {[%emt 0:00:02]} 61. Qe4 {[%emt 0:00:05]} Qd2+ {[%emt 0:00:03]} (61... Qb2+ $14 62. Qc2 Qxc2+ 63. Bxc2 d3) 62. Kg3 $16 {[%emt 0:00:02]} Qc3+ $2 {[%emt 0:00:09][%mdl 8192]} (62... Qe3+ $16 63. Qxe3 dxe3) 63. Kh4 $18 {[%emt 0:00:00] Qb7+ would kill now.} g5+ {[%emt 0:00:01]} 64. fxg5 {[%emt 0:00:03]} hxg5+ {[%emt 0:00:00]} 65. Kxg5 {[%emt 0:00:03] Intending Qb7+ and mate.} Qe3+ {[%emt 0:00:01]} 66. Kh4 $2 {[%emt 0:00:09]} (66. Qf4 $18 {Strongly threatening h4.} Be6 67. h4 Bxf5 68. Kxf5) 66... Qxe4 $11 {[%emt 0:00:13]} 67. Bxe4 {[%emt 0:00:01] KB-KB} d3 $1 {[%emt 0:00:00]} 68. Kg5 {[%emt 0:00:02]} Ke6 $2 {[%emt 0:00:07]} (68... d2 $11 69. Bc2 Be2) 69. Kf4 $18 {[%emt 0:00:02] Bf5+ would be deadly.} d2 {[%emt 0:00:01]} 70. Bf5+ $2 {[%emt 0:00:04]} (70. Bc2 $18 {Threatens to win with Bd1.} Be2 71. Bb3+ Ke7 72. g5) 70... Ke7 {[%emt 0:00:13]} 71. Bc2 {[%emt 0:00:00] Black must now prevent Bd1.} Be2 $1 {[%emt 0:00:01] Wards off Bd1} 72. h4 {[%emt 0:00:02] Hoping for g5.} (72. g5 {with more complications.} Kf7 73. g6+ Kg7 74. Kg5) 72... d1=Q {[%emt 0:00:01] The position is equal.} 73. Bxd1 {[%emt 0:00:01]} Bxd1 $11 {[%emt 0:00:00] KB-K3P} 74. h5 {[%emt 0:00:02]} Ke6 {[%emt 0:00:01]} 75. h6 {[%emt 0:00:12] Threatening mate with h7.} Bc2 {[%emt 0:00:02]} 76. g5 {[%emt 0:00:01]} Bg6 {[%emt 0:00:02]} 77. h7 {[%emt 0:00:06]} Bxh7 {[%emt 0:00:01]} 78. g6 {[%emt 0:00:00]} Bxg6 {[%emt 0:00:01]} 79. Kg5 {[%emt 0:00:01]} Kxe5 {[%emt 0:00:01] Weighted Error Value: White=0.33/Black=0.20 (precise)} 1/2-1/2

[Event "ChessKid Cup Div-III 2023"]
[Site "Online"]
[Date "2023.05.23"]
[Round "4.2"]
[White "Lazavik, Denis"]
[Black "Harikrishna, Pentala"]
[Result "1/2-1/2"]
[ECO "D35"]
[WhiteElo "2544"]
[BlackElo "2704"]
[Annotator "TA"]
[PlyCount "102"]
[EventDate "2023.05.21"]
[EventType "k.o."]
[EventCountry "NET"]
[SourceTitle "playchess.com"]
[Source "ChessBase"]
[SourceQuality "1"]
[TimeControl "900+3"]

{[%evp 18,102,37,31,32,25,31,26,60,40,43,43,63,52,52,56,54,56,56,47,60,19,22,18,18,19,19,3,19,10,32,19,13,10,16,9,19,28,27,25,25,27,40,0,40,0,0,0,0,-9,0,0,0,0,0,0,-1,0,-1,-1,-1,-26,-10,-164,-142,-106,-106,-165,-106,-166,-166,-166,-165,-151,-106,-106,-106,-165,-106,-107,0,-107,0,-241,0,-107,0]} 1. d4 {[%emt 0:00:04]} Nf6 {[%emt 0:00:05]} 2. c4 {[%emt 0:00:01]} e6 {[%emt 0:00:00]} 3. Nc3 {[%emt 0:00:08]} d5 {[%emt 0:00:03]} 4. cxd5 {[%emt 0:00:04]} exd5 {[%emt 0:00:02]} 5. Bg5 {[%emt 0:00:01]} c6 {[%emt 0:00:01]} 6. e3 {[%emt 0:00:02]} Bf5 {[%emt 0:00:02]} 7. Qf3 {[%emt 0:00:06]} Bg6 {[%emt 0:00:01]} 8. Bxf6 {[%emt 0:00:03]} Qxf6 {[%emt 0:00:01]} 9. Qxf6 {[%emt 0:00:01]} gxf6 {[%emt 0:00:00]} 10. Nf3 {[%emt 0:01:02]} Nd7 {[%emt 0:00:26][%cal Bb8d7,Bd7f6,Bf6e4][%mdl 32] D35: Queen's Gambit Declined: Exchange Variation.} 11. Nh4 {[%emt 0:00:03]} Be7 {[%emt 0:00:32]} 12. Ne2 {[%emt 0:00:33]} f5 {[%emt 0:00:23] White has an edge.} 13. Nf3 {[%emt 0:00:03] Nowadays more popular than 13.g3.} Bd6 {[%emt 0:00:35] [#]} 14. g3 $146 {[%emt 0:00:40]} ({Predecessor:} 14. Nf4 Ke7 15. g3 a5 16. a4 Kf6 17. Bd3 Nf8 18. h4 h5 19. Ke2 Ne6 20. Rhc1 {½-½ Ibrahimli,M (2416)-Abasov,N (2643) AZE-ch Rapid 2022 (7)}) 14... Bb4+ {[%emt 0:00:57]} 15. Kd1 {[%emt 0:00:05][%cal Be1d1,Bd1e2,Be2f2][%mdl 32]} Nf6 {[%emt 0:00:57] Strongly threatening ...Ng4.} 16. Nf4 {[%emt 0:00:09]} Ne4 {[%emt 0:00:22]} 17. Ke2 {[%emt 0:00:45]} Bd6 {[%emt 0:00:15]} 18. Nh4 {[%emt 0:00:35]} Bxf4 {[%emt 0:00:15]} 19. gxf4 {[%emt 0:00:10]} a5 {[%emt 0:00:09]} 20. f3 {[%emt 0:00:22]} Nd6 {[%emt 0:00:02]} 21. Kf2 {[%emt 0:00:04]} Ke7 {[%emt 0:00:15]} 22. Bd3 {[%emt 0:00:20]} a4 {[%emt 0:00:18]} 23. Rac1 {[%emt 0:00:36]} Kf6 {[%emt 0:00:05]} 24. Rc5 {[%emt 0:00:38]} Ke6 {[%emt 0:00:16]} 25. Rhc1 {[%emt 0:00:09]} f6 {[%emt 0:00:22]} 26. R5c2 {[%emt 0:01:01]} Be8 {[%emt 0:00:26]} 27. Rg1 {[%emt 0:00:37]} Bf7 {[%emt 0:00:23]} 28. Rg3 {[%emt 0:00:32]} Rhg8 {[%emt 0:00:14]} 29. Bf1 {[%emt 0:00:24]} Ke7 {[%emt 0:00:29]} 30. Bd3 {[%emt 0:00:38]} Be6 {[%emt 0:00:27]} 31. a3 {[%emt 0:01:29]} Rxg3 {[%emt 0:00:36]} 32. hxg3 {[%emt 0:00:04]} Kd7 {[%emt 0:00:02]} 33. Rc1 {[%emt 0:00:22]} b6 {[%emt 0:01:00]} 34. Ng2 {[%emt 0:00:12]} h5 {[%emt 0:00:12]} 35. Ne1 {[%emt 0:00:42]} Ra5 {[%emt 0:00:31]} 36. Bb1 {[%emt 0:01:22]} Nc4 {[%emt 0:00:36]} 37. Nd3 {[%emt 0:00:41]} Rb5 {[%emt 0:00:05]} 38. Rc2 {[%emt 0:00:23]} Nxa3 {[%emt 0:01:37]} 39. bxa3 {[%emt 0:00:02]} Rxb1 $11 {[%emt 0:00:01][%mdl 4096] Endgame KRB-KRN} 40. Nb2 $2 {[%emt 0:00:06]} ({Avoid the trap} 40. Nb4 $2 Rb3 41. Ke2 Rxa3 $19) (40. Rb2 $1 $11 Rxb2+ 41. Nxb2) 40... b5 {[%emt 0:00:33] White must now prevent ...Ra1.} 41. Nd3 {[%emt 0:00:03]} Kd6 {[%emt 0:00:08]} 42. Rc3 {[%emt 0:00:04] [#]} (42. Ke2 $17) 42... Ra1 {[%emt 0:00:17]} (42... Bc8 $1 $19 43. Nb4 Bb7) 43. Nc1 {[%emt 0:00:23]} (43. Nb4 $17 {is a better defense.}) 43... Bc8 $19 {[%emt 0:00:31][%cal Ob5b4] Hoping for ...b4!} 44. Nd3 {[%emt 0:00:26]} Ra2+ {[%emt 0:00:13]} 45. Kf1 {[%emt 0:00:04][%cal Oc3c6]} Bd7 {[%emt 0:00:04]} 46. Nb4 {[%emt 0:00:19]} Rb2 {[%emt 0:00:05]} 47. Rd3 {[%emt 0:00:20]} (47. Nd3 $17 Ra2 48. Nb4) 47... Be8 {[%emt 0:00:22]} ({Better is} 47... Kc7 $19 {And now ...Kb6 would win.} 48. Rd1 Rb3) 48. Rc3 $17 {[%emt 0:00:04]} Bd7 {[%emt 0:00:01]} (48... Rb1+ $17 49. Kf2 Rb2+ 50. Kf1 Kc7) 49. Nd3 {[%emt 0:00:04]} (49. Rd3 $1 $11 {was the only way to keep the balance.}) 49... Ra2 {[%emt 0:00:07]} ({Black should try} 49... Rd2 $17) 50. Ne1 $2 {[%emt 0:00:11] [#]} (50. Nb4 $11 Rb2) 50... Rb2 {[%emt 0:00:12]} (50... b4 $1 $19 {[%cal Rb4c3] is more deadly.} 51. axb4 Bc8) 51. Nd3 {[%emt 0:00:06]} Ra2 {[%emt 0:00:01] Weighted Error Value: White=0.26 (precise) /Black=0.21 (precise)} (51... Rb1+ $17 52. Ke2 Bc8) 1/2-1/2

[Event "ChessKid Cup Div-III 2023"]
[Site "Online"]
[Date "2023.05.24"]
[Round "5.1"]
[White "Pichot, Alan"]
[Black "Harikrishna, Pentala"]
[Result "1-0"]
[ECO "C54"]
[WhiteElo "2638"]
[BlackElo "2704"]
[Annotator "TA"]
[PlyCount "49"]
[EventDate "2023.05.21"]
[EventType "k.o."]
[EventCountry "NET"]
[SourceTitle "playchess.com"]
[Source "ChessBase"]
[SourceQuality "1"]
[TimeControl "900+3"]

{[%evp 9,49,0,0,-23,-16,-37,-39,-36,141,142,141,145,135,137,147,152,141,140,145,159,191,48,160,162,273,273,223,250,257,239,295,284,398,388,445,423,512,505,492,478,510,500]} 1. e4 {[%emt 0:00:05]} e5 {[%emt 0:00:05]} 2. Nf3 {[%emt 0:00:04]} Nc6 {[%emt 0:00:02]} 3. Bc4 {[%emt 0:00:02]} Bc5 {[%emt 0:00:02]} 4. c3 {[%emt 0:00:03]} Nf6 {[%emt 0:00:01]} 5. d4 {[%emt 0:00:02]} exd4 {[%emt 0:00:03]} 6. b4 {[%emt 0:00:01] C54: Giuoco Piano: 4 c3 Nf6, main lines with 5 d4 and 5 d3.} Be7 {[%emt 0:00:02]} 7. e5 {[%emt 0:00:11]} Ne4 {[%emt 0:00:17]} 8. b5 {[%emt 0:00:03] Black is slightly better.} d5 $2 {[%emt 0:01:06] [#]} (8... Nxc3 $2 9. Nxc3 dxc3 10. bxc6 $18) (8... Na5 $1 $15 {keeps the upper hand.} 9. Be2 Nxc3 10. Nxc3 dxc3) 9. exd6 $1 $16 {[%emt 0:01:00]} Nxd6 {[%emt 0:00:05]} (9... Nxc3 $2 10. Nxc3 dxc3 11. dxe7 Qxd1+ 12. Kxd1 $18) 10. bxc6 {[%emt 0:00:10] aiming for Bd3.} Nxc4 {[%emt 0:00:41]} 11. cxb7 {[%emt 0:00:26]} (11. cxd4 O-O 12. O-O bxc6 $17) 11... Bxb7 {[%emt 0:00:03] ...0-0 is the strong threat.} 12. Qa4+ {[%emt 0:00:02]} (12. cxd4 $2 Bb4+ 13. Nbd2 Bxf3 14. Qa4+ Qd7 15. Qxd7+ Kxd7 $19) 12... Qd7 {[%emt 0:00:02]} 13. Qxc4 {[%emt 0:00:02] [#]} O-O $146 {[%emt 0:01:21]} ({Predecessor:} 13... O-O-O 14. Bf4 Bd6 15. Bg3 Rhe8+ 16. Kd1 dxc3 17. Kc1 Bxf3 18. gxf3 Ba3+ 19. Kc2 Bb2 20. Nxc3 Re6 21. Rad1 Rc6 22. Rxd7 {1-0 Millaret Lores,F (2090)-Capellades Subirana,M (2207) Barcelona Sant Marti op 10th 2023 (6)}) 14. O-O {[%emt 0:00:30] Ne5 would be deadly.} (14. cxd4 Bd5 15. Qd3 Bb4+ 16. Nc3 Rfe8+ 17. Be3 Qc6 $14) (14. Nxd4 Qg4 15. f3 Qxg2 $17) 14... Bf6 {[%emt 0:05:26] Dodges Ne5} 15. Bf4 {[%emt 0:01:14]} (15. cxd4 Bxf3 16. gxf3 Qxd4 17. Qxd4 (17. Qxc7 $2 Qxa1 18. Be3 Qxa2 $19) 17... Bxd4 $17) (15. Nxd4 $18 {Black must now prevent Bf4.} a5 16. Qc5) 15... Bd5 {[%emt 0:01:50] This pair of bishops is nice.} (15... Rad8 $14) 16. Qc5 {[%emt 0:01:17]} ({Much weaker is} 16. Qxc7 $6 Qg4 17. Bg3 (17. Nxd4 $2 Qxg2#) (17. h3 Qg6 $11) 17... dxc3 18. Nxc3 Bxf3 $11) 16... c6 {[%emt 0:02:18]} (16... Bxf3 {was necessary.} 17. gxf3 Rfe8) 17. Nxd4 {[%emt 0:01:11]} Be7 {[%emt 0:00:25]} 18. Qa5 {[%emt 0:00:04]} c5 {[%emt 0:00:00]} 19. Nf3 {[%emt 0:01:29]} Qg4 {[%emt 0:00:45]} 20. Bg3 {[%emt 0:00:05]} h5 {[%emt 0:00:02]} (20... Bxf3 $142 21. gxf3 Qxf3) 21. Nbd2 $18 {[%emt 0:00:22]} h4 {[%emt 0:00:32]} 22. h3 {[%emt 0:00:02] White is clearly winning.} Qg6 {[%emt 0:00:01]} 23. Bxh4 {[%emt 0:00:19]} Bd6 {[%emt 0:00:06]} 24. Rfe1 {[%emt 0:00:29]} Bf4 {[%emt 0:00:08]} 25. Bg3 {[%emt 0:00:21] Weighted Error Value: White=0.15 (very precise) /Black=0.47} 1-0

[Event "ChessKid Cup Div-III 2023"]
[Site "Online"]
[Date "2023.05.24"]
[Round "5.2"]
[White "Harikrishna, Pentala"]
[Black "Pichot, Alan"]
[Result "1/2-1/2"]
[ECO "D02"]
[WhiteElo "2704"]
[BlackElo "2638"]
[Annotator "TA"]
[PlyCount "96"]
[EventDate "2023.05.21"]
[EventType "k.o."]
[EventCountry "NET"]
[SourceTitle "playchess.com"]
[Source "ChessBase"]
[SourceQuality "1"]
[TimeControl "900+3"]

{[%evp 9,96,-4,15,11,25,17,29,31,43,33,39,33,27,35,34,29,29,43,42,12,14,18,32,42,46,2,14,0,0,0,0,0,0,0,0,0,0,0,0,0,0,0,0,0,0,0,0,0,0,0,0,0,0,-30,0,0,0,0,0,-25,-25,-58,-45,-19,-19,-115,-34,-274,0,0,0,0,0,-37,0,0,0,0,0,0,0,0,0,0,0,0,0,0,0]} 1. d4 {[%emt 0:00:03]} Nf6 {[%emt 0:00:06]} 2. Nf3 {[%emt 0:00:02]} d5 {[%emt 0:00:06]} 3. Bf4 {[%emt 0:00:03]} c5 {[%emt 0:00:06]} 4. e3 {[%emt 0:00:01]} Nc6 {[%emt 0:00:01]} 5. Nbd2 {[%emt 0:00:01]} Nh5 {[%emt 0:00:25]} 6. dxc5 {[%emt 0:00:03] D02: 1 d4 d5 2 Nf3 sidelines, including 2...Nf6 3 g3 and 2...Nf6 3 Bf4.} Nxf4 {[%emt 0:00:03]} 7. exf4 {[%emt 0:00:00]} g6 {[%emt 0:00:05]} 8. c3 {[%emt 0:00:08] White has an edge.} Bh6 {[%emt 0:00:09]} 9. g3 {[%emt 0:00:02]} O-O {[%emt 0:00:02][%cal Oe7e5]} 10. Bg2 {[%emt 0:00:02]} b6 {[%emt 0:01:01]} 11. cxb6 {[%emt 0:00:23]} Qxb6 {[%emt 0:00:11]} 12. O-O {[%emt 0:00:02]} Ba6 {[%emt 0:00:59]} 13. Re1 {[%emt 0:00:14]} Qxb2 {[%emt 0:00:48] [#]} 14. Qb3 $146 {[%emt 0:00:25]} ({Predecessor:} 14. Qa4 Qb5 15. Qxb5 Bxb5 16. Ne5 Nxe5 17. Rxe5 Bg7 18. Rxd5 Bc6 19. Rd3 Bxg2 20. Kxg2 Rfd8 21. Rxd8+ Rxd8 22. Nf3 Bxc3 23. Rb1 Rd7 24. Kf1 Kg7 {½-½ Hobber,A (2379)-Abdumalik,Z (2496) Fagernes op 2022 (7)}) 14... Qxb3 {[%emt 0:00:27]} 15. axb3 {[%emt 0:00:01]} Bb7 {[%emt 0:00:16]} 16. b4 {[%emt 0:00:02]} e6 {[%emt 0:00:24]} 17. Nb3 {[%emt 0:00:30] Threatening b5.} (17. b5 $5 {[%cal Rb5c6]} Ne7 18. Ne5 $14) 17... Rfc8 {[%emt 0:00:08]} 18. Nc5 {[%emt 0:02:27]} Rc7 {[%emt 0:00:04]} 19. Nd4 {[%emt 0:01:47]} Nxd4 {[%emt 0:01:21]} 20. cxd4 {[%emt 0:00:02]} Bg7 {[%emt 0:00:02]} 21. Red1 {[%emt 0:00:11]} Bc8 {[%emt 0:00:04]} 22. Bf1 {[%emt 0:00:23]} Rb8 {[%emt 0:00:05]} 23. Ra4 {[%emt 0:01:53]} Rb6 {[%emt 0:01:13]} 24. Kg2 {[%emt 0:01:02]} Bd7 {[%emt 0:00:16]} 25. Ra5 {[%emt 0:00:36]} Bc8 {[%emt 0:00:27]} ({Don't do} 25... Rxb4 26. Na6 Rbb7 27. Nxc7 Rxc7 28. Kf3 $14) 26. b5 {[%emt 0:00:27]} Rb8 {[%emt 0:01:11]} 27. Kf3 {[%emt 0:00:32]} Bxd4 {[%emt 0:01:28][%mdl 64] Remove Defender} 28. Rxd4 {[%emt 0:00:02]} Rxc5 {[%emt 0:00:02]} 29. Rxa7 {[%emt 0:00:01]} Rc3+ {[%emt 0:00:05]} 30. Kg2 $1 {[%emt 0:00:27]} Kf8 {[%emt 0:00:12]} 31. g4 {[%emt 0:00:27]} Rb7 {[%emt 0:00:37]} 32. Rda4 {[%emt 0:01:36]} Rb6 {[%emt 0:01:18]} 33. Ra8 {[%emt 0:00:21]} Kg7 {[%emt 0:00:19][%cal Od5d4]} 34. g5 {[%emt 0:01:12] [#]} d4 $1 {[%emt 0:00:12] Threatens to win with ...Bb7+.} 35. Kg1 {[%emt 0:00:16]} (35. f3 Bb7) 35... Rd6 {[%emt 0:00:27]} 36. Rc4 {[%emt 0:00:31]} Bb7 {[%emt 0:00:28]} 37. Ra7 {[%emt 0:00:18] [#]} (37. Ra2 $1 $11) 37... Be4 {[%emt 0:00:18]} (37... Bf3 $1 $17 {...Rxc4 would be deadly.} 38. Ra1 Rxc4 39. Bxc4 d3) 38. f3 $2 {[%emt 0:00:10] [#]} Bf5 $2 {[%emt 0:00:43]} ({And not} 38... Bxf3 39. Kf2 $15) ({Worse is} 38... Rxf3 39. Raa4 $17) ({Better is} 38... Rxc4 $1 $19 39. Bxc4 Bc2) 39. Kf2 $11 {[%emt 0:00:06]} Rxc4 {[%emt 0:00:01]} 40. Bxc4 {[%emt 0:00:01][%mdl 4096] Endgame Strongly threatening Ke2. KRB-KRB} d3 {[%emt 0:00:01]} 41. Ra1 {[%emt 0:00:02]} d2 {[%emt 0:00:02]} (41... Rd4 $5 {[%cal Rd4c4]} 42. Bb3 Rb4 $17) 42. Bb3 {[%emt 0:00:13] The position is equal.} Rd3 {[%emt 0:00:07]} 43. Bd1 {[%emt 0:00:01] b6 is the strong threat.} Rd5 {[%emt 0:00:14]} 44. Be2 {[%emt 0:00:01]} Bc2 {[%emt 0:00:09]} 45. b6 {[%emt 0:00:02] Black must now prevent b7.} d1=Q {[%emt 0:00:03]} (45... d1=B $2 46. b7 Rd8 47. Ra8 $18) 46. Bxd1 {[%emt 0:00:04]} Bxd1 {[%emt 0:00:01]} 47. Rb1 {[%emt 0:00:04] Inhibits Bb3.} Rd8 $1 {[%emt 0:00:07] aiming for ...Ba4.} 48. b7 {[%emt 0:00:04][%cal Ob1d1] Hoping for Rxd1!} Rb8 $1 {[%emt 0:00:01] Weighted Error Value: White=0.19 (very precise) /Black=0.13 (very precise)} 1/2-1/2